Cogmind - Beta 15 @@@ ROGUE MODE // 2025.09.22 @ 14:22:11 Player: beans Result: Destroyed by S-27 Virus with Autogun Performance ------------- Evolutions (5) 2500 Regions Visited (12) 2400 Robots Destroyed (86) 430 Value Destroyed (4348) 4348 Prototype IDs (29) 580 Alien Tech Used (0) 0 Bonus (3189) 3189 TOTAL SCORE: 13447 Bonus ------- High Alert Combat Kills 1203 Follower Combat Kills 786 Entered Garrisons 200 Used RIF Installer 500 Entered DSFs 500 Aligned with FarCom 300 Friendly Fire -300 Cogmind --------- Core Integrity 0/1000 Matter 25/300 Energy 98/100 System Corruption 17% Temperature Cool (0) Movement Core (50) Location -5/Factory Parts ------- > --- POWER (2) -------- (None) > --- PROPULSION (5) --- (None) > --- UTILITY (8) ------ Enhanced Optical Array Launcher Guidance Computer Relay Coupler [Grunt] (1) > --- WEAPON (2) ------- (None) > --- INVENTORY (5) ---- Micro-nuke Launcher Improved Remote Datajack Peak State ------------ > --- POWER ------------ Cooled Fission Core > --- PROPULSION ------- Flying Fortress v7 > --- UTILITY ---------- Improved Cooling System Coolant Injector Advanced Targeting Computer Core Analyzer Precision Energy Filter Weapon Cycler > --- WEAPON ----------- Micro-nuke Launcher Advanced Concussive RPG > --- INVENTORY -------- Gatling Laser Gatling Laser Heavy Ion Cannon Heavy Ion Cannon Missile Launcher [Rating: 80] Favorites ----------- Power Cooled Fission Core Engine Deuterium Engine Power Core Cooled Fission Core Propulsion Improved Heavy Treads Treads Improved Heavy Treads Leg Aluminum Leg Hover Unit Antigrav System Flight Unit Flying Fortress v7 Utility Advanced Targeting Computer Device Improved Cooling System Storage Medium Storage Unit Processor Advanced Targeting Computer Hackware Relay Coupler [Grunt] Weapon Gatling Laser Energy Gun Gatling Laser Energy Cannon Heavy Ion Cannon Ballistic Gun Light Assault Rifle Ballistic Cannon Enhanced Gauss Cannon Launcher Micro-nuke Launcher Special Weapon Improved Remote Datajack Build | -11 -10 -10 -10 -9 -8 -7 -7 -7 -7 -7 -6 -5 ------- Run | Yrd Mat Min Exi Min Mat Fac Was Fac DSF Gar Fac Fac Slots Evolved 10 | . . . . . 4 2 . . . . 2 2 Power 1 | . . . . . . . . . . . . 1 Propulsion 3 | . . . . . 2 . . . . . . 1 Utility 6 | . . . . . 2 2 . . . . 2 . Weapon . | . . . . . . . . . . . . . Parts Attached 56 | 4 . 1 . 1 11 9 8 1 . 12 2 7 Power 5 | . . . . . 2 1 1 . . . . 1 Engine 3 | . . . . . 2 1 . . . . . . Core 2 | . . . . . . . 1 . . . . 1 Reactor . | . . . . . . . . . . . . . Propulsion 10 | 2 . . . . 1 . . . . 5 . 2 Treads 4 | 2 . . . . . . . . . 2 . . Leg 3 | . . . . . . . . . . 3 . . Wheel . | . . . . . . . . . . . . . Hover 2 | . . . . . . . . . . . . 2 Flight 1 | . . . . . 1 . . . . . . . Utility 18 | . . . . . 4 4 4 . . 3 2 1 Device 11 | . . . . . 4 2 4 . . 1 . . Storage 1 | . . . . . . . . . . . 1 . Processor 5 | . . . . . . 2 . . . 1 1 1 Hackware 1 | . . . . . . . . . . 1 . . Protection . | . . . . . . . . . . . . . Artifact . | . . . . . . . . . . . . . Weapon 23 | 2 . 1 . 1 4 4 3 1 . 4 . 3 Energy Gun 7 | . . . . . . 4 1 . . 1 . 1 Energy Cannon 2 | . . . . . 2 . . . . . . . Ballistic Gun 6 | 2 . 1 . 1 1 . . . . 1 . . Ballistic Cannon 3 | . . . . . . . . . . 2 . 1 Launcher 4 | . . . . . 1 . 2 1 . . . . Special Weapon 1 | . . . . . . . . . . . . 1 Impact Weapon . | . . . . . . . . . . . . . Slashing Weapon . | . . . . . . . . . . . . . Piercing Weapon . | . . . . . . . . . . . . . Special Melee Weapon . | . . . . . . . . . . . . . Unidentified Prototypes 6 | . . . . . 1 . 3 1 . 1 . . Parts Lost 19 | . . 1 . . 2 . . . 1 3 1 11 Power 2 | . . . . . . . . . . . . 2 Propulsion 3 | . . . . . . . . . . 1 . 2 Utility 7 | . . . . . 1 . . . 1 1 1 3 Weapon 7 | . . 1 . . 1 . . . . 1 . 4 Highest Loss Streak 4 | . . 1 . . 1 . . . 1 2 1 4 To Critical Strikes . | . . . . . . . . . . . . . Average Backups 4 | . . . . 1 4 4 4 5 5 5 5 4 Power . | . . . . . . . . . . . . . Propulsion . | . . . . 1 . . . . . . . . Utility . | . . . . . . . . . . . . . Weapon 3 | . . . . . 4 4 4 5 5 5 4 2 Tool/Special . | . . . . . . . . . . . . . Unused Backups 5 | . . . . . 1 2 1 . . . . 1 Power . | . . . . . . . . . . . . . Propulsion . | . . . . . . . . . . . . . Utility 1 | . . . . . . . 1 . . . . . Weapon 3 | . . . . . 1 2 . . . . . . Tool/Special 1 | . . . . . . . . . . . . 1 Average Slot Usage (%) 66 | . 57 56 57 57 47 65 75 76 70 83 74 35 Engine 1 | . . . . . 8 7 2 . . . . . Core 3 | . . . . . . . 4 7 7 7 4 . Treads 8 | . 28 28 28 28 . . . . . 9 10 . Leg 1 | . . . . . . . . . . 6 . . Flight 2 | . . . . . 8 7 7 7 7 . . . Device 13 | . . . . . 12 26 30 30 24 15 13 4 Processor 14 | . . . . . . 8 15 15 15 22 22 16 Hackware 3 | . . . . . . . . . . 5 6 5 Energy Gun 6 | . . . . . . 1 12 15 14 12 6 2 Energy Cannon 2 | . . . . . 15 12 . . . . . . Ballistic Gun 4 | . 28 27 28 28 . . . . . . . . Peak Build Rating 80 | 4 4 4 7 8 51 66 80 77 77 73 78 45 Average Rating 47 | 3 4 3 5 7 45 56 73 76 72 61 64 28 On Entrance 35 | . 4 4 4 7 8 51 66 77 77 71 69 26 Naked Turns . | . . . . . . . . . . . . . Heaviest Build 43 | 3 3 3 2 4 28 30 38 33 37 35 43 33 Greatest Support 150 | 40 40 40 40 40 50 50 50 50 50 150 150 11 Greatest Overweight (x) 10 | . . . . . . . . . . 10 . 6 Average Overweight (x) . | . . . . . . . . . . . . . Largest Inventory Capacity 10 | 5 5 5 5 5 5 5 5 5 5 5 10 5 Average Capacity 5 | 5 5 5 5 5 5 5 5 5 5 5 8 5 Most Carried 6 | 4 . 1 4 5 5 5 5 5 5 5 6 5 Average Carried 4 | . . . 1 4 4 4 4 4 5 4 5 4 Final Capacity 5 | 5 5 5 5 5 5 5 5 5 5 5 5 5 Final Carried 5 | . . . 4 5 4 5 5 5 5 5 5 2 Class Distribution -------------------- 61% | Mutant 38% | Scavenger-Mutant Dominant Class ---------------- Mutant | -10/Materials Mutant | -10/Mines Mutant | -10/Exiles Mutant | -9/Mines Mutant | -8/Materials Mutant | -7/Factory Mutant | -7/Waste Mutant | -7/Factory Mutant | -7/DSF Scavenger-Mutant | -7/Garrison Scavenger-Mutant | -6/Factory Mutant | -5/Factory Resources | -11 -10 -10 -10 -9 -8 -7 -7 -7 -7 -7 -6 -5 ----------- Run | Yrd Mat Min Exi Min Mat Fac Was Fac DSF Gar Fac Fac Matter Collected 2595 | 177 . 116 . 21 134 220 531 30 62 775 33 496 Remotely . | . . . . . . . . . . . . . Salvage Created 3578 | . . 169 . . 417 355 223 55 50 1190 698 421 Parts 158 | . . 12 . . 22 23 . 1 3 42 37 18 Haulers Intercepted 8 | . . . . . 2 2 . 1 1 . 1 1 Recyclers Shooed 1 | . . . . . . . . . . . 1 . Parts Field Recycled . | . . . . . . . . . . . . . Retrieved Matter . | . . . . . . . . . . . . . Parts Self-Destructed . | . . . . . . . . . . . . . Prevented . | . . . . . . . . . . . . . Kills | -11 -10 -10 -10 -9 -8 -7 -7 -7 -7 -7 -6 -5 ------- Run | Yrd Mat Min Exi Min Mat Fac Was Fac DSF Gar Fac Fac Combat Hostiles Destroyed 62 | . . 6 . . 6 6 . . . 21 16 7 Guns 29 | . . 6 . . . 1 . . . 12 9 1 Cannons 14 | . . . . . 4 3 . . . . 1 6 AOE 18 | . . . . . 2 2 . . . 9 5 . Classes Destroyed 14 | . . 3 . . 5 1 . . . 3 2 . Worker 1 | . . . . . . . . . . . 1 . Builder 4 | . . . . . 1 2 . . . . 1 . Tunneler 4 | . . 2 . . . . . . . . 2 . Hauler 8 | . . . . . 2 2 . 1 1 . 1 1 Mechanic 2 | . . . . . . . . . . 1 1 . Watcher 5 | . . . . . 1 3 . . . . 1 . Swarmer 19 | . . 5 . . . 3 . . . 6 3 2 Grunt 17 | . . 1 . . 2 1 . . . 7 6 . Brawler 3 | . . . . . . . . . . 1 1 1 Duelist 1 | . . . . . . . . . . . 1 . Sentry 11 | . . . . . 3 . . . . 5 2 1 Specialist 1 | . . . . . . . . . . 1 . . Hunter 3 | . . . . . 1 . . . . 1 1 . Programmer 7 | . . . . . . 2 . . . . 2 3 Best Kill Streak 7 | . . 4 . . 3 4 . 1 1 4 7 3 Combat Bots Only 5 | . . 3 . . 2 3 . . . 4 5 3 Max Kills in Single Turn 3 | . . 1 . . 2 2 . 1 1 3 3 1 Gunslinging . | . . . . . . . . . . . . . Exploded 3 | . . . . . 2 1 . . . 3 3 . Melee . | . . . . . . . . . . . . . Uniques/NPCs Destroyed . | . . . . . . . . . . . . . Combat | -11 -10 -10 -10 -9 -8 -7 -7 -7 -7 -7 -6 -5 -------- Run | Yrd Mat Min Exi Min Mat Fac Was Fac DSF Gar Fac Fac Hostile Shots Fired 544 | . 22 35 . . 35 21 . . 5 131 168 127 Missed 202 | . 5 11 . . 15 6 . . 2 44 70 49 Hits 342 | . 17 24 . . 20 15 . . 3 87 98 78 Melee 2 | . . . . . . . . . . . . 2 Projectile 340 | . 17 24 . . 20 15 . . 3 87 98 76 Critical Strikes 5 | . . 1 . . . . . . . . 1 3 Damage Taken 5260 | . 167 231 . . 348 205 . . 255 866 1355 1833 Core 1646 | . 30 72 . . . 11 . . 38 245 237 1013 Absorbed by Shields . | . . . . . . . . . . . . . Regen/Repaired (Parts) 825 | . . . . . . . 198 . . 355 272 . Core Remaining (%) 77 | 100 . . . 59 100 . . . . 58 72 . Volleys Fired 340 | 1 . 23 . . 38 24 36 2 8 103 62 43 Largest 2 | 2 . 2 . . 2 2 2 2 2 2 2 2 Hottest 162 | 40 . 40 . . 130 160 161 161 161 161 125 162 Shots Fired 550 | 2 . 34 . . 68 47 69 4 16 171 73 66 Gun 333 | 2 . 34 . . . 12 67 4 14 132 49 19 Cannon 173 | . . . . . 61 30 . . . 26 15 41 Launcher 38 | . . . . . 7 5 2 . 2 13 9 . Special 6 | . . . . . . . . . . . . 6 Kinetic 119 | 2 . 34 . . . . . . . 27 15 41 Thermal 387 | . . . . . 61 42 67 4 14 131 49 19 Explosive 38 | . . . . . 7 5 2 . 2 13 9 . Electromagnetic . | . . . . . . . . . . . . . Robot Hit Streak 54 | 2 . 6 . . 4 5 21 22 11 54 9 19 Robot Miss Streak 4 | . . 4 . . 2 3 2 . 2 3 3 3 Penetration Max . | . . . . . . . . . . . . . Secondary Targets 5 | . . 2 . . . . . . . 3 . . Max Gunslinging Chain 1 | . . 1 . . . . . . . 1 . . Shots Hit Robots 281 | 2 . 22 . . 33 22 17 3 16 80 44 42 Core Hits 204 | . . 12 . . 14 18 8 2 10 90 36 14 Critical Kills 3 | . . . . . . . . . . . . 3 Critical Parts Destroyed 6 | . . . . . . . . . . . . 6 Critical Strikes 17 | . . . . . . . . . . 1 2 14 Burn 3 | . . . . . . . . . . . 2 1 Destroy 9 | . . . . . . . . . . . . 9 Blast 5 | . . . . . . . . . . 1 . 4 Melee Attacks . | . . . . . . . . . . . . . Impact . | . . . . . . . . . . . . . Slashing . | . . . . . . . . . . . . . Piercing . | . . . . . . . . . . . . . Sneak Attacks . | . . . . . . . . . . . . . Combat Hostiles . | . . . . . . . . . . . . . Follow-up Attacks . | . . . . . . . . . . . . . Damage Inflicted 11040 | 18 . 223 . . 1042 746 491 71 723 3601 3051 1074 Guns 4546 | 18 . 223 . . . 164 491 71 338 1893 882 466 Cannons 2004 | . . . . . 672 254 . . . 199 271 608 Explosions 4490 | . . . . . 370 328 . . 385 1509 1898 . Melee . | . . . . . . . . . . . . . Ramming . | . . . . . . . . . . . . . Kinetic 1319 | 18 . 223 . . . . . . . 199 271 608 Thermal 5509 | . . . . . 672 418 491 71 338 1893 1160 466 Explosive 4212 | . . . . . 370 328 . . 385 1509 1620 . Electromagnetic . | . . . . . . . . . . . . . Impact . | . . . . . . . . . . . . . Slashing . | . . . . . . . . . . . . . Piercing . | . . . . . . . . . . . . . Highest Corruption 17 | . . . . . . 2 2 2 2 2 2 17 Average Corruption 2 | . . . . . . 2 2 2 2 2 1 6 Corruption Purged . | . . . . . . . . . . . . . Corruption Blocked . | . . . . . . . . . . . . . Effects 84 | . . . . . . 9 6 1 2 42 6 18 Message Errors 21 | . . . . . . 5 1 1 2 10 1 1 Matter Fused 19 | . . . . . . 1 2 . . 11 2 3 Heat Flow Errors 7 | . . . . . . . 3 . . 3 . 1 Energy Discharges 13 | . . . . . . 1 . . . 6 1 5 Parts Rejected 2 | . . . . . . 1 . . . . . 1 Data Loss (minor) 10 | . . . . . . 1 . . . 8 . 1 Data Loss (major) 5 | . . . . . . . . . . 2 1 2 Misfires 1 | . . . . . . . . . . 1 . . Alerts 4 | . . . . . . . . . . 1 1 2 Misdirections 2 | . . . . . . . . . . . . 2 Overload Shots . | . . . . . . . . . . . . . Overflow Damage 262 | . . . . . . 31 . . 92 8 118 13 Projectiles 54 | . . . . . . 31 . . . 7 3 13 Explosions 208 | . . . . . . . . . 92 1 115 . Melee . | . . . . . . . . . . . . . Knockbacks 4 | . . . . . . . . . . 1 3 . Impact . | . . . . . . . . . . . . . Kinetic 4 | . . . . . . . . . . 1 3 . Secondary . | . . . . . . . . . . . . . Self-Inflicted Damage . | . . . . . . . . . . . . . Shots . | . . . . . . . . . . . . . Rammed . | . . . . . . . . . . . . . Targets Rammed . | . . . . . . . . . . . . . Kicked . | . . . . . . . . . . . . . Crushed . | . . . . . . . . . . . . . Highest Temperature 440 | . . 22 . . 424 65 199 27 41 440 60 208 Average Temperature 84 | . . 13 . . 147 33 99 20 23 68 21 72 Received Heat Transfer 822 | . 60 84 . . 27 21 . . . 213 342 75 Effects 5 | . . . . . 5 . . . . . . . Shutdowns 1 | . . . . . 1 . . . . . . . Interference 4 | . . . . . 4 . . . . . . . Siege Activations 1 | . . . . . . . . . . 1 . . Total Turns 26 | . . . . . . . . . . 26 . . Longest Duration 26 | . . . . . . . . . . 26 . . Martial Activations . | . . . . . . . . . . . . . Shielding Activations . | . . . . . . . . . . . . . Robots Disrupted . | . . . . . . . . . . . . . Combat Hostiles . | . . . . . . . . . . . . . Robots Corrupted . | . . . . . . . . . . . . . Combat Hostiles . | . . . . . . . . . . . . . Parts Fried . | . . . . . . . . . . . . . Impact Corruptions . | . . . . . . . . . . . . . Robots Melted 1 | . . . . . . . . . . . 1 . Combat Hostiles 1 | . . . . . . . . . . . 1 . Parts Melted 10 | . . . . . . . . . . 7 3 . Heat Transferred 9618 | . . . . . 925 707 1125 137 736 3505 1780 703 Parts Sabotaged . | . . . . . . . . . . . . . Parts Stolen . | . . . . . . . . . . . . . Parts Stripped . | . . . . . . . . . . . . . Power Chain Reactions . | . . . . . . . . . . . . . Alert | -11 -10 -10 -10 -9 -8 -7 -7 -7 -7 -7 -6 -5 ------- Run | Yrd Mat Min Exi Min Mat Fac Was Fac DSF Gar Fac Fac Maximum Alert Level 5 | . . . . . 1 . . . 1 5 5 3 Low Security (%) 40 | 100 100 100 . 100 82 100 100 100 40 2 . . Level 1 3 | . . . . . 17 . . . 59 6 . . Level 2 11 | . . . . . . . . . . 7 . 66 Level 3 10 | . . . . . . . . . . 18 . 33 Level 4 13 | . . . . . . . . . . 24 48 . Level 5 19 | . . . . . . . . . . 41 51 . High Security . | . . . . . . . . . . . . . Max Security . | . . . . . . . . . . . . . Sterilizations 1 | . . . . . . . . . 1 . . . Peak Influence 2512 | . . 168 . . 280 190 55 14 219 2512 1937 906 Initial 1318 | . . . . . . 115 55 . . 164 1318 906 Average 757 | . . 22 . . 108 63 7 . 160 1426 1582 662 Influence Increases 5235 | . . 316 . . 484 330 27 14 369 2438 995 262 Destroy 0b10 Robot/C 1760 | . . 220 . . 120 120 . . 160 680 320 140 Destroy 0b10 Robot/NC 155 | . . 20 . . 20 35 . 5 5 30 35 5 Destroy Leader 274 | . . 20 . . 56 30 . 2 10 40 94 22 Allied During Kill 447 | . . 11 . . . . . 7 118 286 25 . Successful Hack 14 | . . . . . 14 . . . . . . . Disable Machine 510 | . . 30 . . 60 . . . 30 75 300 15 Anti-Garrison Action 1150 | . . . . . . . . . . 1150 . . Destroy Structure 505 | . . . . . 64 40 27 . 46 177 131 20 Partial Spotted 30 | . . . . . 30 . . . . . . . Lose Combat Pursuer 390 | . . 15 . . 120 105 . . . . 90 60 Influence Decreases 4715 | . . 156 160 . 230 426 185 14 150 145 1656 1593 Entered New Map 2596 | . . . 160 . . 139 103 . . 55 1194 945 Time Decay 1669 | . . 156 . . 210 287 82 14 . . 422 498 Lost Part 180 | . . . . . 20 . . . 10 30 10 110 Lost Ally 270 | . . . . . . . . . 140 60 30 40 Squads Dispatched 23 | . 1 . . . 2 3 . 2 1 . 9 5 Investigation 4 | . 1 . . . . . . 2 . . . 1 Extermination 7 | . . . . . . 3 . . . . 2 2 Reinforcement 8 | . . . . . 2 . . . 1 . 4 1 Assault 4 | . . . . . . . . . . . 3 1 Garrison . | . . . . . . . . . . . . . Intercept . | . . . . . . . . . . . . . Searches Triggered . | . . . . . . . . . . . . . Construction Impeded 2 | . . . . . . . . . . . 2 . Haulers Reinforced 1 | . . . . . . . . . . . 1 . Active Scanning Responses . | . . . . . . . . . . . . . Cargo Convoy Interrupts 1 | . . . . . . . . . . . . 1 Stealth | -11 -10 -10 -10 -9 -8 -7 -7 -7 -7 -7 -6 -5 --------- Run | Yrd Mat Min Exi Min Mat Fac Was Fac DSF Gar Fac Fac Distress Signals 3 | . . . . . 2 . . . . . 1 . Communications Jammed . | . . . . . . . . . . . . . Distress Signals . | . . . . . . . . . . . . . Times Spotted 135 | . 4 11 . . 14 13 . . 7 31 29 26 Peak Tracking Total 8 | . 5 4 . . 4 4 . . 5 4 5 8 Tactical Retreats 14 | . . 1 . . 3 4 . . . . 3 3 Traps | -11 -10 -10 -10 -9 -8 -7 -7 -7 -7 -7 -6 -5 ------- Run | Yrd Mat Min Exi Min Mat Fac Was Fac DSF Gar Fac Fac Traps Triggered 10 | . 1 . . . . 2 . 1 . 2 2 2 Indirectly . | . . . . . . . . . . . . . Trap Hack Attempts . | . . . . . . . . . . . . . Triggered . | . . . . . . . . . . . . . Disarmed . | . . . . . . . . . . . . . Reprogrammed . | . . . . . . . . . . . . . Reused . | . . . . . . . . . . . . . Traps Extracted . | . . . . . . . . . . . . . Installed . | . . . . . . . . . . . . . Triggered . | . . . . . . . . . . . . . Machines | -11 -10 -10 -10 -9 -8 -7 -7 -7 -7 -7 -6 -5 ---------- Run | Yrd Mat Min Exi Min Mat Fac Was Fac DSF Gar Fac Fac Machines Disabled 43 | . . 2 . . 4 . . . 2 14 20 1 Max in Single Turn 8 | . . . . . 1 . . . 1 2 8 1 Garrison Access 1 | . . . . . . . . . . . 1 . Garrison Relay 4 | . . . . . . . . . . 4 . . Phase Generator 1 | . . . . . . . . . . 1 . . Machines Repaired . | . . . . . . . . . . . . . Machines Dismantled . | . . . . . . . . . . . . . Machines Sabotaged . | . . . . . . . . . . . . . Overloaded Fab Kills . | . . . . . . . . . . . . . Hacking | -11 -10 -10 -10 -9 -8 -7 -7 -7 -7 -7 -6 -5 --------- Run | Yrd Mat Min Exi Min Mat Fac Was Fac DSF Gar Fac Fac Machines Accessed 17 | . . . 1 . 1 6 . 2 . 2 3 2 Terminals 9 | . . . . . 1 3 . 1 . 2 1 1 Fabricators 3 | . . . . . . 1 . 1 . . . 1 Repair Stations . | . . . . . . . . . . . . . Recycling Units 1 | . . . . . . . . . . . 1 . Scanalyzers . | . . . . . . . . . . . . . Garrison Access 3 | . . . . . . 2 . . . . 1 . Total Hacks 25 | . . . 1 . 4 9 . 3 . 2 3 3 Successful 4 | . . . 1 . 1 . . 1 . . 1 . Failed 21 | . . . . . 3 9 . 2 . 2 2 3 Catastrophic 4 | . . . . . . 2 . . . 1 1 . Database Lockouts . | . . . . . . . . . . . . . Manual 3 | . . . 1 . . 2 . . . . . . Terminals 14 | . . . . . 4 4 . 2 . 2 1 1 Fabricators 4 | . . . . . . 1 . 1 . . . 2 Repair Stations . | . . . . . . . . . . . . . Recycling Units 1 | . . . . . . . . . . . 1 . Scanalyzers . | . . . . . . . . . . . . . Garrison Access 5 | . . . . . . 4 . . . . 1 . Terminal Hacks 3 | . . . 1 . 1 . . 1 . . . . Robot Analysis 1 | . . . . . 1 . . . . . . . Open DSF 1 | . . . . . . . . 1 . . . . Proto ID Catalog 1 | . . . 1 . . . . . . . . . Fabricator Hacks . | . . . . . . . . . . . . . Repair Station Hacks . | . . . . . . . . . . . . . Recycling Unit Hacks . | . . . . . . . . . . . . . Scanalyzer . | . . . . . . . . . . . . . Garrison Access Hacks 1 | . . . . . . . . . . . 1 . Seal Access 1 | . . . . . . . . . . . 1 . Unauthorized Hacks . | . . . . . . . . . . . . . Terminals . | . . . . . . . . . . . . . Fabricators . | . . . . . . . . . . . . . Repair Stations . | . . . . . . . . . . . . . Recycling Units . | . . . . . . . . . . . . . Scanalyzers . | . . . . . . . . . . . . . Garrison Access . | . . . . . . . . . . . . . Data Cores Recovered . | . . . . . . . . . . . . . Used . | . . . . . . . . . . . . . Hacking Detections 15 | . . . . . 1 6 . 2 . 2 2 2 Full Trace Events 1 | . . . . . . . . . . . . 1 Feedback Events . | . . . . . . . . . . . . . Feedback Blocked . | . . . . . . . . . . . . . Robot Schematics Acquired . | . . . . . . . . . . . . . Robots Built . | . . . . . . . . . . . . . Authchips . | . . . . . . . . . . . . . Time . | . . . . . . . . . . . . . Total Robot Build Rating . | . . . . . . . . . . . . . Part Schematics Acquired . | . . . . . . . . . . . . . Parts Built . | . . . . . . . . . . . . . Authchips . | . . . . . . . . . . . . . Time . | . . . . . . . . . . . . . Total Part Build Rating . | . . . . . . . . . . . . . Parts Repaired . | . . . . . . . . . . . . . Time . | . . . . . . . . . . . . . Parts Recycled . | . . . . . . . . . . . . . Recycled Matter . | . . . . . . . . . . . . . Retrieved Matter . | . . . . . . . . . . . . . Retrieved Components . | . . . . . . . . . . . . . Parts Scanalyzed . | . . . . . . . . . . . . . Part Schematics Acquired . | . . . . . . . . . . . . . Parts Damaged . | . . . . . . . . . . . . . Bothacking | -11 -10 -10 -10 -9 -8 -7 -7 -7 -7 -7 -6 -5 ------------ Run | Yrd Mat Min Exi Min Mat Fac Was Fac DSF Gar Fac Fac Used RIF Installer 1 | . . . . . . . . . . 1 . . Robots Hacked 3 | . . . . . . . . . . . . 3 Non-combat . | . . . . . . . . . . . . . Combat 3 | . . . . . . . . . . . . 3 Robot Hacks Applied 3 | . . . . . . . . . . . . 3 parse_system 1 | . . . . . . . . . . . . 1 formatsys_high 2 | . . . . . . . . . . . . 2 Relay Couplers Released 14 | . . . . . . . . . . 14 . . Machine Destruction 14 | . . . . . . . . . . 14 . . Attached 1 | . . . . . . . . . . 1 . . Fabnet Peak Effective % . | . . . . . . . . . . . . . Robots Rewired . | . . . . . . . . . . . . . Allies Hacked . | . . . . . . . . . . . . . Hacks Repelled . | . . . . . . . . . . . . . Allies | -11 -10 -10 -10 -9 -8 -7 -7 -7 -7 -7 -6 -5 -------- Run | Yrd Mat Min Exi Min Mat Fac Was Fac DSF Gar Fac Fac Total Allies 23 | . . 1 . . . . 20 . . . . 2 Largest Group 20 | . . 1 1 . . . 20 20 18 9 5 2 Highest-Rated Group 476 | . . 31 31 . . . 476 476 430 270 141 73 Highest-Rated Ally 47 | . . 31 31 . . . 35 35 35 35 31 47 Initial Warlord ECA Mod 10 | . . . . . . . . . . 10 . . Total Orders . | . . . . . . . . . . . . . Ally Attacks 151 | . . 23 . . . . . . 60 68 . . Total Damage 2940 | . . 256 . . . . . . 1321 1363 . . Kills 29 | . . 6 . . . . . . 10 13 . . Allies Corrupted . | . . . . . . . . . . . . . Allies Melted . | . . . . . . . . . . . . . Intel | -11 -10 -10 -10 -9 -8 -7 -7 -7 -7 -7 -6 -5 ------- Run | Yrd Mat Min Exi Min Mat Fac Was Fac DSF Gar Fac Fac Active Infowar (turns) 2122 | . . . . . . . 2 . . . 788 1332 Optics 2120 | . . . . . . . . . . . 788 1332 ECM 2 | . . . . . . . 2 . . . . . Robot Analysis Total 1 | . . . . . 1 . . . . . . . Derelict Logs Recovered 2 | . . 1 . 1 . . . . . . . . Drone Launches . | . . . . . . . . . . . . . Drone Recoveries . | . . . . . . . . . . . . . Exploration | -11 -10 -10 -10 -9 -8 -7 -7 -7 -7 -7 -6 -5 ------------- Run | Yrd Mat Min Exi Min Mat Fac Was Fac DSF Gar Fac Fac Turns Passed 9816 | 63 48 755 443 410 484 1252 561 214 132 3096 1026 1332 Spaces Moved 6707 | 40 31 314 210 253 566 1032 582 176 157 1804 708 834 Core 944 | 10 . . . . . . . . . 2 321 611 Treads 2268 | 30 31 314 210 253 . . . . . 1043 387 . Legs 560 | . . . . . . . . . . 560 . . Wheels . | . . . . . . . . . . . . . Hover 228 | . . . . . . . . . . 5 . 223 Flight 2707 | . . . . . 566 1032 582 176 157 194 . . Fastest Speed 50 | 50 160 160 160 160 50 50 50 50 50 50 50 50 Average Speed 98 | 132 160 160 160 160 50 50 50 50 50 136 110 92 Slowest Speed 550 | 160 160 160 160 160 50 50 50 50 50 550 160 350 Overloaded Moves . | . . . . . . . . . . . . . Propulsion Burnouts . | . . . . . . . . . . . . . Robots Hopped 5 | . . . . . 4 1 . . . . . . Potential Cave-ins 15 | . . . . . 12 3 . . . . . . Cave-ins Triggered . | . . . . . . . . . . . . . Exploration Rate (%) 46 | 3 12 77 60 62 42 32 95 7 84 88 24 15 Regions Visited 12 Branch Regions 3 Pre-discovered Areas 1 | . . 1 . . . . . . . . . . Known Exits Taken 2 | . . . 1 . . . . 1 . . . . Unknown Exits Taken 6 | 1 1 1 . 1 1 . . . . . 1 . Scrap Searched 3 | . . 1 . 2 . . . . . . . . Spaces Dug 46 | . . . . . 43 3 . . . . . . Terrain Destroyed 579 | . . . . . 114 45 36 . 44 182 149 9 Melee . | . . . . . . . . . . . . . Projectile 57 | . . . . . 28 11 . . . 2 7 9 AOE 522 | . . . . . 86 34 36 . 44 180 142 . Terrain Rammed . | . . . . . . . . . . . . . Walls Destroyed . | . . . . . . . . . . . . . Machines Disabled . | . . . . . . . . . . . . . Actions | -11 -10 -10 -10 -9 -8 -7 -7 -7 -7 -7 -6 -5 --------- Run | Yrd Mat Min Exi Min Mat Fac Was Fac DSF Gar Fac Fac Total 9424 | 48 30 538 317 259 690 1715 796 297 194 2293 911 1336 Wait 2187 | . . 200 107 4 62 634 147 114 27 337 125 430 Move 6686 | 39 30 313 209 252 558 1030 581 175 156 1803 706 834 Hop 4 | . . . . . 3 1 . . . . . . Pick Up 39 | 4 . 1 1 1 8 4 5 1 . 2 2 10 Fast Attach 34 | . . . . . 5 6 8 1 . 11 2 1 Attach 24 | 4 . 1 . . 3 2 1 . . . 2 11 Detach 4 | . . . . . . 2 . . . . 2 . Swap 49 | . . . . 1 7 7 5 2 3 17 3 4 Drop 47 | . . . . 1 6 5 13 2 . 10 7 3 Fire 340 | 1 . 23 . . 38 24 36 2 8 103 62 43 Melee . | . . . . . . . . . . . . . Ram . | . . . . . . . . . . . . . Kick . | . . . . . . . . . . . . . Crush . | . . . . . . . . . . . . . Escape Stasis 10 | . . . . . . . . . . 10 . . Rewire . | . . . . . . . . . . . . . Trap . | . . . . . . . . . . . . . Miscellaneous . | . . . . . . . . . . . . . Route ------- -11/Scrapyard -10/Materials -10/Mines (discovered 3 exits: [*Mat x2] / *Exi) -10/Exiles (discovered 2 exits: *Min x2) -9/Mines -8/Materials -7/Factory (discovered 2 exits: *Fac / [*Low]) -7/Waste -7/Factory -7/DSF -7/Garrison (discovered 3 exits: *Fac x3) -6/Factory (discovered 2 exits: *Fac x2) -5/Factory History --------- Turn | Location | Event 3 | -11/Scrapyard | Discovered new exit (range 15) 64 | -11/Scrapyard | Entered Materials 88 | -10/Materials | Discovered new exit (range 16) 112 | -10/Materials | Entered Mines 128 | -10/Mines | Escorted by a lone wolf Derelict 148 | -10/Mines | Learned location of Storage (-8) 234 | -10/Mines | Excavation squad dispatched 234 | -10/Mines | A large section of the Mines collapsed 312 | -10/Mines | Build established: Mutant 484 | -10/Mines | Excavation squad dispatched 595 | -10/Mines | Discovered new exit (range 8) 769 | -10/Mines | Discovered new exit (range 8) 856 | -10/Mines | Deemed a non-threat by the Exiles lab entrance 856 | -10/Mines | Discovered new exit (range 5) 867 | -10/Mines | Entered Exiles 867 | -10/Exiles | Accompanied by 1 ally 868 | -10/Exiles | Identified exit to Mines 929 | -10/Exiles | Met 8R-AWN 1040 | -10/Exiles | Met EX-HEX 1086 | -10/Exiles | Met EX-BIN 1106 | -10/Exiles | Aligned with FarCom system 1107 | -10/Exiles | Given EX-Vault access code 1147 | -10/Exiles | Opened EX-Vault 1155 | -10/Exiles | Found Flying Fortress v7 1187 | -10/Exiles | Warned to stay clear of 0b10 Research branches 1231 | -10/Exiles | Met EX-DEC 1310 | -10/Exiles | Left Exiles lab with Flying Fortress v7 1310 | -10/Exiles | Entered Mines 1655 | -9/Mines | Learned Materials stockpile data 1697 | -9/Mines | Discovered new exit (range 13) 1720 | -9/Mines | Entered Materials 1720 | -8/Materials | Evolved 4 slots: Propulsion x2, Utility x2 2148 | -8/Materials | Discovered new exit (range 7) 2204 | -8/Materials | Entered Factory 2204 | -7/Factory | Evolved 2 slots: Utility x2 3122 | -7/Factory | Discovered new exit (range 16) 3163 | -7/Factory | Discovered new exit (range 5) 3456 | -7/Factory | Sucked down chute 3456 | -7/Factory | Entered Waste 3457 | -7/Waste | Joined by Warlord forces that had cleared the area 3527 | -7/Waste | Found Prototype Device 3527 | -7/Waste | Identified Exp. ECM Suite 3554 | -7/Waste | Discovered new exit (range 12) 4017 | -7/Waste | Entered Factory 4017 | -7/Factory | Accompanied by 20 allies 4189 | -7/Factory | Identified exit to DSF 4231 | -7/Factory | Entered DSF 4231 | -7/DSF | Accompanied by 19 allies 4251 | -7/DSF | Additional patrols routed to DSF 4266 | -7/DSF | Discovered new exit (range 15) 4308 | -7/DSF | Lost 8 allies 4314 | -7/DSF | Sterilization system engaged 4334 | -7/DSF | Ambient heat levels rising (+10) 4349 | -7/DSF | Ambient heat levels rising (+10) 4363 | -7/DSF | Entered Garrison 4363 | -7/Garrison | Accompanied by 9 allies 4388 | -7/Garrison | Triggered checkpoint 4586 | -7/Garrison | Installed Relay Interface Framework 4595 | -7/Garrison | Triggered checkpoint 4605 | -7/Garrison | Triggered checkpoint 4624 | -7/Garrison | Triggered checkpoint 4629 | -7/Garrison | Triggered checkpoint 4844 | -7/Garrison | Garrison Relay disabled 4964 | -7/Garrison | Build established: Scavenger-Mutant 5072 | -7/Garrison | Triggered checkpoint 5104 | -7/Garrison | Garrison Relay disabled 5355 | -7/Garrison | Discovered new exit (range 12) 5408 | -7/Garrison | Triggered checkpoint 5444 | -7/Garrison | Garrison Relay disabled 5726 | -7/Garrison | Discovered new exit (range 8) 5735 | -7/Garrison | Triggered checkpoint 5854 | -7/Garrison | Garrison Relay disabled 6285 | -7/Garrison | Triggered checkpoint 6336 | -7/Garrison | Discovered new exit (range 14) 6337 | -7/Garrison | Triggered checkpoint 7012 | -7/Garrison | Phase Generator disabled 7459 | -7/Garrison | Entered Factory 7459 | -6/Factory | Accompanied by 5 allies 7459 | -6/Factory | Evolved 2 slots: Utility x2 7517 | -6/Factory | Discovered new exit (range 14) 7809 | -6/Factory | First assault squad dispatched 8138 | -6/Factory | Spotted B-75 Beast 8441 | -6/Factory | Discovered new exit (range 13) 8485 | -6/Factory | Entered another Factory area 8485 | -5/Factory | Evolved 2 slots: Power x1, Propulsion x1 8559 | -5/Factory | Build established: Mutant 9385 | -5/Factory | First assault squad dispatched 9441 | -5/Factory | Core integrity fell below 50% 9492 | -5/Factory | Lost 4 parts (1p1n2w) 9494 | -5/Factory | Cargo convoy interrupted 9630 | -5/Factory | System corruption reached 10% 9685 | -5/Factory | Lost 3 parts (1p2u) 9785 | -5/Factory | Core integrity fell below 20% 9817 | -5/Factory | Destroyed by S-27 Virus with Autogun Last Messages --------------- Acquired 2 matter. K-01 Serf collects debris. Jacked S-27 Virus... >>parse_system Reading system data... K-01 Serf collects debris. B-60 Warrior overheating. B-60 Warrior heat damages Backup Propulsion III. B-60 Warrior overheating. B-60 Warrior heat spikes uncontrollably. B-60 Warrior overheating. B-60 Warrior heat spikes uncontrollably. K-01 Serf collects debris. B-60 Warrior overheating. Imp. Remote Datajack destroyed. B-60 Warrior heat damages Backup Propulsion III. B-60 Warrior overheating. B-60 Warrior heat short circuits Backup Propulsion III. B-60 Warrior overheating. Map ----- +----------------------------------------------------+ | ????????????????????# """" """" #??????????## | | ????????????????????# """" """" #???????????# | | ????????????????????# """" """" #???######### | | ????????????????????# """" """" #???# # # T | | ????????????????????# """" """" #???# # ### | | ?#####+#####????????# #???# """" # #?# | | ?# #????????# ##### """" # #?# | | ?# ################+########## """" # #?# | | ?# # """ # #?# | | ?# | # # #?# | | ## + """ # #?# | | ## ] # """" # #?# | | ?# # """" # #?# | | ?# ##############b !% # """" # #?# | | ?# ##????????#### %= # # ### | | ### ##????????????# # """ # | | "?# ##????????????# # " "" # | | " # % #?????????????# k # """" # | | " # ###???????????# s # """" # | | + ^^^ ############### # + | | # [%^^^% + """""" # ###########+# | | # % %##### """""" # # | | ?" ###?# """""" # ## | | # % #???# """""" + # | | ### #???# # # | | ??# %% #???# #@ u # | | %! #???# # # ! | | #???# # ############# | | #???########### ############# | | ############### k | | # ] ! # | | # # | | # """"" [ # " " | | ########## """"" !! # """ | | ?????????# """ !! # #####+#############+ | | ?????????# !! # # ! ! # | | ?????????# """"" # # [ [ # " | | ??????????# """"" + # " """ # " | | ??????????# """ # # " """" # " | | ??????????# # ss# """""" # " | | ??????????# # ; """""" ! # | | ??????????###############+#+################## | | ???????????????????# #????????# "" | | ???????????????????# """ """ """ #????????# """ | | ???????????????????# """ """ """ #????????# "F | | ???????????????????# """ """ """ #????????# """ | | ???????????????????# #????????# "" | | ???????????????????# """ """ """ #????????# | | ???????????????????# """ """ """ #????????##### | | ???????????????????# """ """ """ #????????????? | +----------------------------------------------------+ Best States ------------- Heat Dissipation 88 Coolant Potential 65 Energy Generation 37 Energy Capacity 350 Matter Stores 300 Matter Capacity 300 Sight Range 22 Terrain Scan Density 10 ECM Strength 3 Weapon Cycling 15 Evasion (%) 60 Targeting Accuracy 8 Launcher Accuracy 20 Target Analysis 6 Core Analysis 6 Recoil Reduction 4 Energy Filtering 50 Relay Coupler Types 1 Relay Coupler Value 27 Item Schematics ----------------- None Robot Schematics ------------------ None Fabricated ------------ Nothing Repaired ---------- Nothing Alien Tech Used ----------------- None Achievements -------------- None Challenges ------------ None Game ------ Seed FrostDecoderSlayer Manual? 0 Play Time 01:08:35 Cumulative 157.0 hours Start 2025.09.22 @ 13:06:42 End 2025.09.22 @ 14:22:11 Sessions 1 Manual Loads 0 Difficulty Rogue Special Mode None Game No. 508 Rogue 507 Adventurer 1 Explorer 0 Win Type - Total 0 Types 0/0/0/0/0/0/0/0/0/0 Lore% 56 Gallery% 53 Achievement% 42 Wizard Run 0 Options --------- Layout 1 ASCII 0 Keyboard 0 Movement Mouse Keybinds 0 Fullscreen 2 Font 24/Smallcaps Map View 50x35 Zoom Use 0% Tactical HUD 0 Map Filters NONE Filters NONE Steam 1 RUN: c85ab3a7-5a2a-48e7-a329-073954425077